fUSD/lending_fUSD_20260108
["ID","MTS","AMOUNT","RATE_DAILY","PERIOD"]
[400830491,1767839497131,7684.32426,0.00013438,2]
[400830492,1767839497159,10000.01,0.00013438,2]
[400830493,1767839497186,10000.01,0.00013438,2]
[400830494,1767839497213,10000.01,0.00013438,2]
[400830495,1767839497240,10000.01,0.00013438,2]
[400830496,1767839497267,10000.01,0.00013438,2]
[400830499,1767839498216,-1117.10427879,0.00013438,2]
[400830500,1767839503968,-294.78439273,0.00013438,2]
[400830504,1767839509977,-315.92294073,0.00013438,2]
[400830505,1767839512335,-275.79732422,0.00013438,2]
[400830506,1767839516846,-428.87479585,0.00013438,2]
[400830507,1767839520020,-198.37055173,0.00013438,2]
[400830515,1767839525549,-288.11984291,0.00013438,2]
[400830516,1767839529378,-293.25580285,0.00013438,2]
[400830517,1767839532775,-392.91108228,0.00013428,2]
[400830518,1767839537103,-250.0,0.0001337,2]
[400830519,1767839539169,-287.25604664,0.0001337,2]
[400830520,1767839541415,-250.0,0.0001337,2]
[400830521,1767839543974,-165.54,0.0001337,2]
[400830522,1767839546170,-203.09776476,0.0001337,2]
[400830523,1767839547682,-198.00530647,0.0001337,2]
[400830524,1767839548278,-6145.22453814,0.0001337,2]
[400830525,1767839549894,-211.34,0.0001337,2]
[400830526,1767839551023,-4783.89113199,0.0001337,2]
[400830527,1767839551060,-432.22773602,0.00013428,2]
[400830528,1767839551182,-10000.01,0.00013428,2]
[400830529,1767839564054,-184.91068569,0.00013428,2]
[400830530,1767839566081,-191.90720398,0.00013428,2]
[400830531,1767839568728,-539.10564219,0.00013428,2]
[400830533,1767839571637,-181.76114988,0.00013428,2]
[400830534,1767839575304,-275.27310149,0.00013428,2]
[400830535,1767839577940,-183.25099777,0.00013428,2]
[400830536,1767839581331,-199.9338848,0.00013428,2]
[400830539,1767839583899,-162.11424412,0.00013427,2]
[400830540,1767839586106,-137.88575588,0.00013427,2]
[400830541,1767839586129,-58.18214762,0.00013427,2]
[400830543,1767839589124,-241.81785238,0.00013427,2]
[400830544,1767839589147,-85.4812332,0.00013428,2]
[400830545,1767839591293,-28.61955172,0.00013428,2]
[400830546,1767839591316,-189.83615086,0.00013428,2]
[400830547,1767839593570,-186.65484852,0.00013428,2]
[400830552,1767839596997,-120.79466811,0.00013428,2]
[400830553,1767839597023,-165.97827688,0.00013428,2]
[400830558,1767839599184,-185.79476472,0.00013428,2]
[400830559,1767839601705,-145.51262589,0.00013428,2]
[400830560,1767839601726,-293.22581473,0.00013428,2]
[400830561,1767839605925,-205.92016426,0.00013428,2]
[400830562,1767839607984,-300.0,0.00013428,2]
[400830563,1767839612633,-200.0,0.00013428,2]
[400830564,1767839646859,729.483662,0.0001336,2]
[400830566,1767839664376,208.0,9.989e-05,2]
[400830567,1767839664709,208.0,9.989e-05,2]
[400830607,1767839816505,176.60518223,0.00013327,2]
[400830609,1767839824732,1000.0,0.00013338,2]
[400830610,1767839847003,2409.01573202,0.00013331,2]
[400830617,1767839891846,2589.64,0.00013259,2]
[400830620,1767839967081,198.07427131,0.00013389,2]
[400830621,1767839974103,1000.0,0.00013338,2]
[400830629,1767840028824,1481.19115244,0.00013389,2]
[400830630,1767840037280,-188.929543,0.00013389,2]
[400830632,1767840038899,-189.6333978,0.00013389,2]
[400830633,1767840040527,-300.0,0.00013389,2]
[400830634,1767840042882,-469.68851358,0.00013389,2]
[400830635,1767840046019,-173.85716246,0.00013389,2]
[400830637,1767840048182,-416.43125076,0.00013389,2]
[400830638,1767840053292,-500.0,0.00013389,2]
[400830639,1767840055470,-167.77555432,0.00013389,2]
[400830640,1767840058207,-476.34437971,0.00013389,2]
[400830641,1767840059766,-167.77555432,0.00013389,2]
[400830643,1767840062532,-202.08645556,0.00013388,2]
[400830644,1767840066088,-97.91354444,0.00013388,2]
[400830645,1767840066111,-368.49819318,0.00013389,2]
[400830646,1767840067148,-332.22444568,0.00013389,2]
[400830647,1767840069850,-479.42632757,0.00013389,2]
[400830648,1767840071883,-256.2808779,0.00013389,2]
[400830649,1767840075842,-432.31220446,0.00013389,2]
[400830652,1767840078618,999.0,0.00013257,3]
[400830653,1767840080308,-262.78607824,0.00013389,2]
[400830655,1767840085542,-283.46910398,0.00013389,2]
[400830656,1767840087732,-254.79681484,0.00013389,2]
[400830657,1767840088221,-92.98764674,0.00013389,2]
[400830658,1767840089840,-185.97529348,0.00013389,2]
[400830659,1767840089874,-9442.08411956,0.00013389,2]
[400830660,1767840096158,-185.97529348,0.00013389,2]
[400830661,1767840096186,-404.75153594,0.00013389,2]
[400830662,1767840096213,-300.0,0.00013426,2]
[400830663,1767840096241,-150.0,0.00013426,2]
[400830664,1767840096268,-254.0,0.00013426,2]
[400830665,1767840096299,-300.0,0.00013426,2]
[400830666,1767840096329,-1200.0,0.00013426,2]
[400830667,1767840096356,-260.0,0.00013426,2]
[400830668,1767840096382,-300.0,0.00013426,2]
[400830669,1767840096409,-471.97554941,0.00013427,2]
[400830670,1767840096436,-250.0,0.00013427,2]
[400830671,1767840096655,-1846.60524234,0.00013428,2]
[400830674,1767840109865,1000.0,0.00013338,2]
[400830676,1767840167172,166.66,0.0001305,2]
[400830677,1767840167583,166.66,0.00013324,2]
[400830681,1767840194706,2000.0,0.00032876,120]
[400830682,1767840208318,213.35471522,0.0001333,2]
[400830683,1767840209400,-214.34140696,0.00013389,2]
[400830684,1767840209424,-118.97530341,0.00013389,2]
[400830685,1767840212744,-168.05451932,0.00013389,2]
[400830686,1767840215955,-195.69246571,0.00013389,2]
[400830687,1767840220941,-301.88640204,0.00013389,2]
[400830688,1767840224325,1000.0,0.00012165,2]
[400830689,1767840224539,1000.0,0.00012569,2]
[400830690,1767840231664,7453.33528478,0.00013331,2]
[400830691,1767840231687,10000.01,0.00013331,2]
[400830692,1767840232501,-266.9860136,0.00013331,2]
[400830693,1767840234805,-2589.17870162,0.00013331,2]
[400830695,1767840251096,500.0,0.00030137,120]
[400830696,1767840251257,500.0,0.00030192,120]
[400830697,1767840251420,500.0,0.00030247,120]
[400830698,1767840251575,500.0,0.00030301,120]
[400830699,1767840251746,500.0,0.00030356,120]
[400830700,1767840253357,569.64900133,0.00030411,120]
[400830701,1767840278180,600.0,0.00030411,120]
[400830702,1767840286743,600.0,0.00030959,120]
[400830703,1767840287228,600.0,0.00031507,120]
[400830704,1767840289766,600.0,0.00032055,120]
[400830705,1767840291779,600.0,0.00032603,120]
[400830706,1767840292280,-236.09533642,0.00013271,2]
[400830744,1767840368370,-200.0,0.00013158,2]
[400830746,1767840369841,-53.387964,0.00013158,2]
[400830747,1767840369863,-122.74702478,0.00013225,2]
[400830853,1767840445574,600.0,0.00032603,120]
[400830876,1767840501921,-200.0,0.00013158,2]
[400830877,1767840501948,-227.51910702,0.00013191,2]
[400830973,1767840577877,-22.48089298,0.00013191,2]
[400830974,1767840577913,-27.25297522,0.00013225,2]
[400830975,1767840577965,-695.73148313,0.00013288,2]
[400830976,1767840577999,-250.0,0.00013299,2]
[400830977,1767840578039,-695.73148312,0.00013312,2]
[400830978,1767840578073,-695.73148312,0.00013336,2]
[400830980,1767840578111,-1000.0,0.00013338,2]
[400830981,1767840592496,-2226.15336486,0.00013338,2]
[400830982,1767840599060,-10000.01,0.00013288,2]
[400830984,1767840622363,-372.34501122,0.00013201,2]
[400830985,1767840623936,-166.66,0.00013201,2]
[400830997,1767840632009,-148.54498878,0.00013201,2]
[400830998,1767840632018,-1797.80540778,0.00013288,2]
[400830999,1767840632061,-446.88,0.00013288,2]
[400831000,1767840632072,-612.07,0.00013288,2]
[400831001,1767840632084,-486.87103,0.00013288,2]
[400831002,1767840632121,-111.94530766,0.00013288,2]
[400831003,1767840632131,-168.88962305,0.00013288,2]
[400831004,1767840632143,-168.88962305,0.00013288,2]
[400831005,1767840632153,-259.0,0.00013288,2]
[400831006,1767840632163,-250.0,0.00013313,2]
[400831007,1767840632172,-300.0,0.00013337,2]
[400831008,1767840632182,-284.0,0.00013337,2]
[400831009,1767840632191,-300.0,0.00013337,2]
[400831010,1767840632201,-1200.0,0.00013337,2]
[400831011,1767840632211,-430.99456121,0.00013338,2]
[400831012,1767840632223,-13730.15363617,0.00013338,2]
[400831013,1767840632238,-1581.8518876,0.00013338,2]
[400831015,1767840632249,-1555.4437575,0.00013338,2]
[400831016,1767840632264,-1759.0,0.00013338,2]
[400831017,1767840632275,-9502.06968929,0.00013338,2]
[400831037,1767840638152,-500.0,0.00013337,2]
[400831038,1767840638162,-134.59901641,0.00013337,2]
[400831039,1767840638201,-365.40098359,0.00013337,2]
[400831040,1767840638212,-500.0,0.00013337,2]
[400831041,1767840638221,-500.0,0.00013337,2]
[400831042,1767840638230,-500.0,0.00013337,2]
[400831043,1767840638239,-281.48935895,0.00013337,2]
[400831044,1767840638249,-424.43627153,0.00013337,2]
[400831045,1767840638259,-500.0,0.00013337,2]
[400831046,1767840638268,-631.91861948,0.00013337,2]
[400831047,1767840638277,-500.0,0.00013337,2]
[400831048,1767840638287,-500.0,0.00013337,2]
[400831049,1767840638296,-500.0,0.00013337,2]
[400831050,1767840638305,-250.32346833,0.00013337,2]
[400831051,1767840638314,-500.0,0.00013337,2]
[400831052,1767840638323,-500.0,0.00013337,2]
[400831053,1767840638334,-500.0,0.00013337,2]
[400831054,1767840638343,-500.0,0.00013337,2]
[400831055,1767840638353,-500.0,0.00013337,2]
[400831056,1767840638363,-203.65562894,0.00013337,2]
[400831058,1767840638373,-500.0,0.00013337,2]
[400831060,1767840638382,-533.43140379,0.00013337,2]
[400831062,1767840638392,-230.9921761,0.00013337,2]
[400831064,1767840638402,-500.0,0.00013337,2]
[400831066,1767840638411,-500.0,0.00013337,2]
[400831068,1767840638421,-500.0,0.00013337,2]
[400831070,1767840638431,-500.0,0.00013337,2]
[400831072,1767840638440,-500.0,0.00013337,2]
[400831074,1767840638450,-500.0,0.00013337,2]
[400831076,1767840638459,-500.0,0.00013337,2]
[400831078,1767840638469,-500.0,0.00013337,2]
[400831080,1767840638479,-500.0,0.00013337,2]
[400831081,1767840638489,-500.0,0.00013337,2]
[400831084,1767840638498,-500.0,0.00013337,2]
[400831086,1767840638508,-500.0,0.00013337,2]
[400831088,1767840638517,-645.71142512,0.00013337,2]
[400831090,1767840638526,-500.0,0.00013337,2]
[400831091,1767840638536,-500.0,0.00013337,2]
[400831093,1767840638546,-217876.71895621,0.00013338,2]
[400831096,1767840638557,-599.32682242,0.00013338,2]
[400831098,1767840638568,-1266.01117204,0.00013338,2]
[400831100,1767840638582,-2167.29775329,0.00013338,2]
[400831103,1767840638602,-747304.97839941,0.00013338,2]
[400831105,1767840638611,-15397.59861675,0.00013389,2]
[400831108,1767840638621,-150.0,0.00013429,2]
[400831109,1767840638630,-200.0,0.0001343,2]
[400831111,1767840638639,-500.0,0.0001343,2]
[400831113,1767840638648,-234.79954054,0.0001343,2]
[400831115,1767840638659,-151.0,0.0001343,2]
[400831117,1767840638669,-151.0,0.0001343,2]
[400831120,1767840638679,-151.0,0.0001343,2]
[400831122,1767840638688,-151.0,0.0001343,2]
[400831123,1767840638697,-151.0,0.0001343,2]
[400831125,1767840638707,-151.0,0.0001343,2]
[400831127,1767840638716,-151.0,0.0001343,2]
[400831129,1767840638726,-151.0,0.0001343,2]
[400831131,1767840638735,-151.0,0.0001343,2]
[400831132,1767840638745,-151.0,0.0001343,2]
[400831134,1767840638754,-151.0,0.0001343,2]
[400831136,1767840638763,-1480.81,0.0001343,2]
[400831138,1767840638772,-210.91209289,0.00013435,2]
[400831140,1767840638782,-1000.0,0.00013436,2]
[400831142,1767840638791,-10933.72,0.00013489,2]
[400831144,1767840638800,-780.10784792,0.00013536,2]
[400831146,1767840638810,-9999.99,0.00013536,2]
[400831148,1767840638819,-337.42,0.00013536,2]
[400831150,1767840638829,-999.99,0.00013536,2]
[400831152,1767840638838,-150.99,0.00013536,2]
[400831154,1767840638848,-299.99,0.00013536,2]
[400831156,1767840638857,-210.22,0.00013536,2]
[400831158,1767840638867,-166.66,0.00013599,2]
[400831160,1767840638876,-4810.82,0.00013599,2]
[400831162,1767840638885,-7905.49,0.00013599,2]
[400831164,1767840638895,-9999.99,0.00013599,2]
[400831166,1767840638904,-3687.75,0.00013599,2]
[400831168,1767840638913,-5884.67,0.00013599,2]
[400831170,1767840638923,-1178.68,0.00013599,2]
[400831172,1767840638932,-4999.99,0.00013599,2]
[400831174,1767840638941,-150.0,0.00013669,2]
[400831176,1767840638951,-500.0,0.00013698,2]
[400831178,1767840638960,-500.0,0.00013698,2]
[400831180,1767840638970,-500.0,0.00013698,2]
[400831182,1767840638979,-500.0,0.00013698,2]
[400831184,1767840638990,-500.0,0.00013698,2]
[400831186,1767840638999,-500.0,0.00013698,2]
[400831188,1767840639009,-500.0,0.00013698,2]
[400831190,1767840639018,-430.91456548,0.00013698,2]
[400831192,1767840639028,-500.0,0.00013698,2]
[400831194,1767840639037,-502.25127096,0.00013698,2]
[400831196,1767840639047,-500.0,0.00013698,2]
[400831198,1767840639056,-500.0,0.00013698,2]
[400831200,1767840639066,-184.55624416,0.00013698,2]
[400831202,1767840639076,-500.0,0.00013698,2]
[400831204,1767840639089,-500.0,0.00013698,2]
[400831206,1767840639099,-500.0,0.00013698,2]
[400831208,1767840639108,-500.0,0.00013698,2]
[400831210,1767840639118,-821.9,0.00013699,2]
[400831212,1767840639127,-1991.08,0.00013699,2]
[400831214,1767840639141,-1480.81,0.00013704,2]
[400831216,1767840639151,-13455.58174537,0.000138,2]
[400831218,1767840639160,-28181.61772072,0.00013844,2]
[400831220,1767840639170,-166.66,0.00013874,2]
[400831222,1767840639183,-1186.44134713,0.0001388,2]
[400831224,1767840639193,-15397.59861671,0.0001389,2]
[400831226,1767840639202,-200.0,0.0001394,2]
[400831229,1767840639213,-984.08,0.00013977,2]
[400831231,1767840639223,-1480.81,0.00013978,2]
[400831233,1767840639233,-500.0,0.00014005,2]
[400831235,1767840639242,-500.0,0.00014005,2]
[400831236,1767840639251,-500.0,0.00014005,2]
[400831238,1767840639260,-166.66,0.00014149,2]
[400831240,1767840639269,-1480.81,0.00014252,2]
[400831242,1767840639278,-780.10784788,0.00014263,2]
[400831245,1767840639289,-13455.58174537,0.00014313,2]
[400831247,1767840639298,-1991.08,0.00014384,2]
[400831249,1767840639308,-15397.59861671,0.00014391,2]
[400831251,1767840639317,-496.28410847,0.00014401,2]
[400831253,1767840639327,-166.66,0.00014423,2]
[400831255,1767840639336,-250.0,0.00014474,2]
[400831257,1767840639345,-861.2,0.00014476,2]
[400831259,1767840639355,-303.08526023,0.0001451,2]
[400831261,1767840639364,-319.98066326,0.0001451,2]
[400831263,1767840639373,-1480.81,0.00014526,2]
[400831265,1767840639383,-255.0,0.00014543,2]
[400831267,1767840639393,-1709.18421185,0.00014564,2]
[400831269,1767840639402,-250.0,0.00014617,2]
[400831271,1767840639412,-300.0,0.00014617,2]
[400831273,1767840639421,-300.0,0.00014617,2]
[400831275,1767840639431,-302.67771243,0.00014617,2]
[400831277,1767840639440,-195.0,0.00014617,2]
[400831279,1767840639453,-420.0,0.00014621,2]
[400831281,1767840639471,-420.0,0.00014621,2]
[400831283,1767840639481,-1680.0,0.0001467,2]
[400831285,1767840639492,-1000.0,0.00014703,2]
[400831287,1767840639501,-1000.0,0.00014727,2]
[400831289,1767840639510,-151.0,0.00014749,2]
[400831291,1767840639519,-500.0,0.00014763,2]
[400831293,1767840639528,-500.0,0.00014763,2]
[400831295,1767840639538,-500.0,0.00014763,2]
[400831297,1767840639547,-500.0,0.00014763,2]
[400831299,1767840639556,-169.07455586,0.00014763,2]
[400831301,1767840639565,-500.0,0.00014763,2]
[400831303,1767840639574,-500.0,0.00014763,2]
[400831305,1767840639584,-500.0,0.00014763,2]
[400831307,1767840639593,-500.0,0.00014763,2]
[400831309,1767840639602,-500.0,0.00014763,2]
[400831311,1767840639611,-500.0,0.00014763,2]
[400831313,1767840639620,-500.0,0.00014763,2]
[400831315,1767840639629,-500.0,0.00014763,2]
[400831317,1767840639638,-500.0,0.00014763,2]
[400831319,1767840639648,-500.0,0.00014763,2]
[400831321,1767840639657,-500.0,0.00014763,2]
[400831323,1767840639667,-1480.81,0.000148,2]
[400831325,1767840639676,-168.88962304,0.00014825,2]
[400831327,1767840639685,-168.88962304,0.00014825,2]
[400831329,1767840639695,-13455.58174537,0.00014825,2]
[400831331,1767840639704,-367.01,0.00014886,2]
[400831333,1767840639714,-15397.59861671,0.00014893,2]
[400831335,1767840639723,-780.10784788,0.00014991,2]
[400831337,1767840639732,-1991.08,0.00015068,2]
[400831339,1767840639742,-888.0,0.00015068,2]
[400831341,1767840639751,-500.0,0.00015073,2]
[400831343,1767840639760,-1480.81,0.00015074,2]
[400831345,1767840639770,-410.25491874,0.00015099,2]
[400831347,1767840639780,-500.0,0.00015099,2]
[400831349,1767840639789,-500.0,0.00015099,2]
[400831351,1767840639799,-500.0,0.00015099,2]
[400831353,1767840639808,-500.0,0.00015099,2]
[400831355,1767840639817,-1000.0,0.0001531,2]
[400831392,1767840640105,-1000.0,0.0001531,2]
[400831394,1767840640115,-556.63084022,0.0001531,2]
[400831396,1767840640133,-1000.0,0.0001531,2]
[400831398,1767840640146,-1000.0,0.0001531,2]
[400831400,1767840640156,-1000.0,0.0001531,2]
[400831402,1767840640165,-656.27078391,0.0001531,2]
[400831404,1767840640174,-1000.0,0.0001531,2]
[400831406,1767840640185,-1000.0,0.0001531,2]
[400831408,1767840640194,-1001.84542925,0.0001531,2]
[400831410,1767840640203,-1000.0,0.0001531,2]
[400831412,1767840640215,-413.69875704,0.0001531,2]
[400831414,1767840640224,-1000.0,0.0001531,2]
[400831417,1767840640233,-1000.0,0.0001531,2]
[400831419,1767840640243,-1000.0,0.0001531,2]
[400831421,1767840640252,-13455.58174537,0.00015338,2]
[400831423,1767840640262,-1480.81,0.00015348,2]
[400831425,1767840640272,-15397.59861671,0.00015394,2]
[400831427,1767840640281,-250.0,0.00015589,2]
[400831429,1767840640291,-151.0,0.00015589,2]
[400831431,1767840640302,-736.73634073,0.00015589,2]
[400831433,1767840640312,-1500.0,0.00015589,2]
[400831435,1767840640321,-270.73180541,0.00015589,2]
[400831437,1767840640331,-1500.0,0.00015589,2]
[400831439,1767840640340,-1500.0,0.00015589,2]
[400831441,1767840640349,-1500.0,0.00015589,2]
[400831443,1767840640358,-1500.0,0.00015589,2]
[400831445,1767840640368,-1500.0,0.00015589,2]
[400831447,1767840640377,-500.0,0.00015589,2]
[400831449,1767840640386,-1500.0,0.00015589,2]
[400831451,1767840640395,-500.0,0.00015589,2]
[400831453,1767840640405,-1500.0,0.00015589,2]
[400831455,1767840640415,-500.0,0.00015589,2]
[400831457,1767840640425,-574.12855637,0.00015589,2]
[400831459,1767840640435,-500.0,0.00015589,2]
[400831461,1767840640444,-1500.0,0.00015589,2]
[400831463,1767840640454,-500.0,0.00015589,2]
[400831465,1767840640463,-500.0,0.00015589,2]
[400831467,1767840640474,-1500.0,0.00015589,2]
[400831469,1767840640483,-500.0,0.00015589,2]
[400831471,1767840640492,-578.20924308,0.00015589,2]
[400831473,1767840640501,-419.1378307,0.00015589,2]
[400831475,1767840640510,-1500.0,0.00015589,2]
[400831477,1767840640519,-500.0,0.00015589,2]
[400831479,1767840640528,-500.0,0.00015589,2]
[400831481,1767840640537,-500.0,0.00015589,2]
[400831483,1767840640546,-500.0,0.00015589,2]
[400831485,1767840640555,-500.0,0.00015589,2]
[400831487,1767840640564,-2000.0,0.00015589,2]
[400831489,1767840640573,-500.0,0.00015589,2]
[400831491,1767840640582,-500.0,0.00015589,2]
[400831493,1767840640592,-2000.0,0.00015589,2]
[400831495,1767840640601,-500.0,0.00015589,2]
[400831497,1767840640610,-500.0,0.00015589,2]
[400831499,1767840640619,-2000.0,0.00015589,2]
[400831501,1767840640628,-500.0,0.00015589,2]
[400831503,1767840640637,-500.0,0.00015589,2]
[400831505,1767840640647,-2000.0,0.00015589,2]
[400831507,1767840640656,-500.0,0.00015589,2]
[400831509,1767840640665,-2000.0,0.00015589,2]
[400831511,1767840640675,-500.0,0.00015589,2]
[400831514,1767840640684,-2000.0,0.00015589,2]
[400831517,1767840640693,-500.0,0.00015589,2]
[400831520,1767840640703,-500.0,0.00015589,2]
[400831522,1767840640712,-2000.0,0.00015589,2]
[400831524,1767840640721,-500.0,0.00015589,2]
[400831526,1767840640730,-500.0,0.00015589,2]
[400831528,1767840640739,-2000.0,0.00015589,2]
[400831530,1767840640747,-151.66241854,0.00015589,2]
[400831532,1767840640756,-500.0,0.00015589,2]
[400831534,1767840640765,-500.0,0.00015589,2]
[400831536,1767840640775,-2000.0,0.00015589,2]
[400831537,1767840640783,-500.0,0.00015589,2]
[400831539,1767840640792,-500.0,0.00015589,2]
[400831541,1767840640801,-2000.0,0.00015589,2]
[400831543,1767840640810,-500.0,0.00015589,2]
[400831545,1767840640820,-2000.0,0.00015589,2]
[400831547,1767840640829,-500.0,0.00015589,2]
[400831550,1767840640839,-500.0,0.00015589,2]
[400831551,1767840640848,-500.0,0.00015589,2]
[400831554,1767840640857,-500.0,0.00015589,2]
[400831556,1767840640867,-151.0,0.00015589,2]
[400831558,1767840640876,-500.0,0.00015589,2]
[400831560,1767840640885,-500.0,0.00015589,2]
[400831562,1767840640894,-322.6107,0.00015589,2]
[400831564,1767840640903,-620.0,0.00015589,2]
[400831566,1767840640913,-1000.0,0.00015621,2]
[400831568,1767840640923,-1480.81,0.00015622,2]
[400831569,1767840640931,-500.0,0.00015684,2]
[400831572,1767840640942,-263.0,0.00015699,2]
[400831574,1767840640952,-300.0,0.00015715,2]
[400831575,1767840640961,-1000.0,0.00015717,2]
[400831578,1767840640977,-780.10784788,0.00015718,2]
[400831580,1767840640989,-433.0,0.00015752,2]
[400831582,1767840640998,-1991.08,0.00015753,2]
[400831584,1767840641007,-13455.58174537,0.0001585,2]
[400831586,1767840641017,-1500.0,0.00015858,2]
[400831588,1767840641026,-1500.0,0.00015858,2]
[400831590,1767840641037,-1500.0,0.00015858,2]
[400831592,1767840641047,-1129.4325829,0.00015858,2]
[400831594,1767840641056,-1500.0,0.00015858,2]
[400831596,1767840641065,-1500.0,0.00015858,2]
[400831598,1767840641074,-1500.0,0.00015858,2]
[400831600,1767840641085,-511.09296657,0.00015858,2]
[400831602,1767840641094,-1001.21839087,0.00015858,2]
[400831604,1767840641103,-1500.0,0.00015858,2]
[400831606,1767840641112,-1500.0,0.00015858,2]
[400831608,1767840641121,-300.0,0.00015876,2]
[400831610,1767840641131,-15397.59861671,0.00015895,2]
[400831612,1767840641144,-1480.81,0.00015896,2]
[400831614,1767840641153,-1063.61847191,0.000159,2]
[400831616,1767840641162,-1063.61847186,0.000159,2]
[400831618,1767840641171,-1063.61847186,0.000159,2]
[400831620,1767840641182,-1063.61847186,0.000159,2]
[400831622,1767840641190,-1063.61847186,0.000159,2]
[400831624,1767840641199,-1063.61847186,0.000159,2]
[400831626,1767840641211,-1000.0,0.00015918,2]
[400831628,1767840641232,-150.0,0.00015941,2]
[400831630,1767840641253,-500.0,0.00015962,2]
[400831632,1767840641270,-500.0,0.00015962,2]
[400831634,1767840641280,-150.0,0.00015996,2]
[400831636,1767840641289,-200.0,0.00016,2]
[400831638,1767840641298,-300.0,0.00016014,2]
[400831640,1767840641307,-300.0,0.00016024,2]
[400831642,1767840641316,-587.0,0.00016029,2]
[400831644,1767840641326,-587.0,0.00016029,2]
[400831646,1767840641335,-1000.0,0.00016048,2]
[400831648,1767840641344,-200.0,0.00016051,2]
[400831650,1767840641354,-300.0,0.00016051,2]
[400831652,1767840641364,-300.0,0.00016077,2]
[400831654,1767840641374,-300.0,0.00016087,2]
[400831656,1767840641384,-1000.0,0.00016109,2]
[400831658,1767840641393,-9252.33,0.00016116,2]
[400831660,1767840641404,-157.22325972,0.00016137,2]
[400831662,1767840641413,-595.37131296,0.00016137,2]
[400831664,1767840641423,-152.48765181,0.00016137,2]
[400831666,1767840641432,-2351.0,0.00016138,2]
[400831668,1767840641442,-1000.0,0.00016148,2]
[400831670,1767840641451,-1500.0,0.00016168,2]
[400831672,1767840641460,-1480.81,0.0001617,2]
[400831674,1767840641469,-322.28994131,0.00016184,2]
[400831676,1767840641480,-500.0,0.00016199,2]
[400831678,1767840641490,-500.0,0.00016199,2]
[400831680,1767840641499,-150.0,0.000162,2]
[400831682,1767840641508,-300.0,0.00016226,2]
[400831684,1767840641518,-1000.0,0.00016257,2]
[400831686,1767840641528,-150.0,0.00016262,2]
[400831688,1767840641537,-1000.0,0.00016297,2]
[400831690,1767840641547,-300.0,0.00016321,2]
[400831692,1767840641556,-150.0,0.00016324,2]
[400831694,1767840641565,-300.0,0.0001633,2]
[400831696,1767840641574,-1000.0,0.00016332,2]
[400831698,1767840641583,-300.0,0.00016355,2]
[400831700,1767840641593,-168.88962304,0.00016363,2]
[400831702,1767840641602,-168.88962304,0.00016363,2]
[400831704,1767840641611,-13455.58174537,0.00016363,2]
[400831706,1767840641620,-300.0,0.00016364,2]
[400831708,1767840641629,-1000.0,0.00016365,2]
[400831710,1767840641639,-300.0,0.00016367,2]
[400831712,1767840641648,-300.0,0.00016376,2]
[400831714,1767840641660,-300.0,0.00016378,2]
[400831716,1767840641671,-150.0,0.00016386,2]
[400831718,1767840641680,-300.0,0.00016393,2]
[400831719,1767840641689,-15397.59861671,0.00016396,2]
[400831722,1767840641699,-162.0,0.000164,2]
[400831724,1767840641710,-833.0,0.000164,2]
[400831726,1767840641720,-833.0,0.000164,2]
[400831728,1767840641729,-833.0,0.000164,2]
[400831730,1767840641738,-2000.0,0.00016406,2]
[400831732,1767840641748,-1502.55797273,0.00016406,2]
[400831734,1767840641758,-2000.0,0.00016406,2]
[400831736,1767840641767,-2000.0,0.00016406,2]